bitfinex/quotes_ETHUSD_20260126
["timestamp","ask_amount","ask_price","bid_price","bid_amount"]
[1769411554606,1.18233665,2896.6,2895.7,0.001]
[1769411554813,1.17742608,2896.2,2895.3,0.001]
[1769411555013,1.17742608,2896.2,2894.4,8.3832084]
[1769411555014,1.17742608,2896.0,2894.5,0.01726205]
[1769411555305,1.17742608,2896.0,2894.5,0.88094379]
[1769411555515,1.38196485,2896.5,2895.0,1.16006427]
[1769411555673,1.38196485,2896.5,2895.2,2.02354309]
[1769411555996,1.38196485,2896.5,2895.3,0.0172549]
[1769411556874,1.17742608,2896.4,2895.2,0.0172549]
[1769411558288,1.17742608,2896.3,2894.9,0.01725668]
[1769411558620,0.92586678,2896.4,2894.7,0.01726325]
[1769411558621,1.17742608,2896.1,2894.7,0.01726325]
[1769411559705,1.17742608,2896.1,2894.7,0.88090975]
[1769411559898,1.17742608,2896.1,2894.8,0.86361587]
[1769411560210,1.17742608,2896.0,2894.8,0.01726801]
[1769411560909,0.8632575,2896.1,2894.8,0.01726801]
[1769411560910,1.17742608,2895.8,2894.8,0.01726801]
[1769411561109,0.002,2895.9,2894.9,1.16006427]
[1769411561314,0.002,2896.1,2895.0,1.38142615]
[1769411561811,1.17742608,2896.7,2895.1,0.31472809]
[1769411562015,1.17742608,2896.7,2895.2,1.17731857]
[1769411562203,1.17742608,2896.7,2895.3,0.86346837]
[1769411562422,1.17742608,2896.7,2895.4,0.01725072]
[1769411562582,1.38147103,2896.6,2895.4,0.01725072]
[1769411563434,1.38147103,2896.6,2895.0,4.38131953]
[1769411563435,1.17742608,2896.4,2895.1,0.01725132]
[1769411563602,1.17742608,2896.2,2895.0,0.74025847]
[1769411564114,1.17742608,2896.2,2894.8,0.01726265]
[1769411564311,1.17742608,2896.0,2894.9,0.20419728]
[1769411564513,1.17742608,2896.0,2894.8,0.01726265]
[1769411564711,1.24012419,2896.0,2894.7,0.0182704]
[1769411565103,1.17742608,2896.0,2894.7,0.0182704]
[1769411565522,1.17742608,2896.0,2894.7,0.88191468]
[1769411565726,1.17742608,2896.0,2894.8,0.86361445]
[1769411566128,1.17742608,2896.0,2894.7,0.0182704]
[1769411566129,1.17742608,2896.0,2894.7,0.88189863]
[1769411566831,1.17742608,2895.9,2894.7,0.0182704]
[1769411567032,1.22059055,2895.9,2894.7,0.0182704]
[1769411568509,1.17742608,2895.8,2894.7,0.0182704]
[1769411568711,1.24012419,2895.6,2894.7,0.001]
[1769411569335,0.06269811,2895.4,2894.7,0.001]
[1769411569523,1.17742608,2895.3,2894.3,0.001]
[1769411570034,0.06269811,2895.2,2894.3,0.001]
[1769411570272,1.17742608,2895.0,2894.3,0.001]
[1769411570553,1.38152312,2894.9,2894.3,0.001]
[1769411571155,1.17742608,2895.2,2894.3,0.001]
[1769411573020,1.17742608,2895.2,2894.5,0.001]
[1769411575056,1.17742608,2895.1,2894.3,0.001]
[1769411575938,1.17742608,2895.1,2893.8,0.001]
[1769411575939,1.17742608,2894.8,2893.8,0.001]
[1769411577648,1.17742608,2894.9,2893.8,0.001]
[1769411577850,1.17742608,2894.9,2893.8,0.01829965]
[1769411578159,1.17742608,2894.9,2893.8,0.01830144]
[1769411579860,0.86358935,2894.9,2893.8,0.01830144]
[1769411580029,1.17742608,2894.8,2893.8,0.01830144]
[1769411580229,1.38152762,2894.7,2893.8,0.01830144]
[1769411580430,1.38152762,2894.7,2893.8,0.001]
[1769411581330,1.38152762,2894.7,2893.8,0.01830323]
[1769411583764,0.04318385,2894.6,2893.8,0.001]
[1769411584059,1.22060993,2894.6,2893.8,0.001]
[1769411584261,0.2288369,2894.5,2893.8,0.001]
[1769411584433,1.40626298,2894.5,2893.8,0.001]
[1769411585465,1.40626298,2894.5,2894.0,0.001]
[1769411586578,0.2288369,2894.5,2894.0,0.001]
[1769411586749,1.14926797,2894.8,2894.0,0.001]
[1769411591970,1.19245033,2894.7,2894.0,0.001]
[1769411592261,1.14926797,2894.6,2893.8,0.001]
[1769411592461,1.14926797,2894.4,2893.8,0.001]
[1769411593161,1.19444735,2894.9,2893.8,1.20652184]
[1769411593367,1.15126797,2894.9,2893.9,1.22282089]
[1769411593666,0.002,2894.9,2893.9,1.22282089]
[1769411594152,0.002,2894.9,2894.1,1.20552184]
[1769411594352,0.002,2894.9,2894.2,0.20693781]
[1769411594542,0.002,2894.9,2894.2,1.41245965]
[1769411594748,0.002,2894.9,2894.2,1.42975213]
[1769411595150,1.15126797,2894.9,2894.2,0.20693781]
[1769411595346,1.15126797,2894.9,2893.8,0.01829368]
[1769411595547,1.14926797,2894.7,2893.8,0.001]
[1769411595861,1.14926797,2894.5,2893.8,0.001]
[1769411596068,1.14926797,2894.3,2893.8,0.001]
[1769411596492,1.19244884,2894.8,2893.8,0.001]
[1769411596838,1.39825119,2894.8,2893.8,0.001]
[1769411597158,1.18518903,2894.7,2893.8,0.001]
[1769411597362,1.18518903,2894.5,2893.8,0.001]
[1769411598254,1.22837438,2894.5,2893.8,0.001]
[1769411598867,1.39099138,2894.8,2894.0,0.001]
[1769411599075,0.002,2894.6,2894.0,0.001]
[1769411603681,0.002,2894.6,2894.1,0.19777823]
[1769411606653,0.002,2894.6,2894.1,2.17452149]
[1769411606858,0.002,2894.6,2894.2,1.11292366]
[1769411607586,0.002,2894.6,2894.2,1.97669711]
[1769411608301,0.002,2895.1,2894.5,1.11292366]
[1769411609593,0.002,2895.1,2894.6,0.86367719]
[1769411610090,0.002,2895.1,2894.4,0.86372351]
[1769411610294,0.002,2895.1,2894.5,0.86369716]
[1769411610591,0.002,2895.1,2894.6,1.11292366]
[1769411610774,0.002,2895.1,2894.7,0.19766208]
[1769411612575,0.002,2895.1,2894.8,1.11292366]
[1769411612773,0.002,2895.8,2894.8,1.11292366]
[1769411613101,0.002,2895.8,2894.7,1.06130804]
[1769411613102,0.002,2895.8,2894.1,1.11292366]
[1769411613103,1.18518903,2895.4,2894.1,1.11292366]
[1769411613262,1.18518903,2895.4,2894.0,0.001]
[1769411613263,1.24788714,2895.2,2894.0,0.86485419]
[1769411613462,1.18518903,2895.0,2894.0,0.001]
[1769411613665,0.06269811,2895.2,2894.0,0.001]
[1769411613666,1.18518903,2894.8,2894.0,0.001]
[1769411614786,1.22837139,2894.7,2894.0,0.001]
[1769411616574,1.19327994,2894.6,2894.0,0.001]
[1769411618490,0.86367889,2894.6,2894.0,0.001]
[1769411618794,1.19327994,2894.5,2894.0,0.001]
[1769411619020,1.39897582,2894.4,2894.0,0.001]
[1769411619908,1.19327994,2894.7,2894.0,0.001]
[1769411620076,1.19327994,2894.9,2894.0,0.001]
[1769411620280,1.23646081,2894.8,2894.0,0.001]
[1769411620485,1.19327994,2894.8,2894.0,0.001]
[1769411622906,3.45390964,2895.3,2894.0,0.001]
[1769411622907,1.91727994,2895.4,2894.0,1.21924719]
[1769411623202,1.19327994,2895.7,2894.2,1.20094994]
[1769411623369,1.19327994,2895.7,2894.4,1.20094994]
[1769411623572,1.19327994,2895.7,2894.5,0.01727876]
[1769411623573,1.23644739,2895.7,2894.5,0.01727876]
[1769411623787,1.23644739,2895.7,2894.6,1.20094994]
[1769411623969,1.19327994,2895.5,2894.3,1.20094994]
[1769411624169,1.23645037,2895.5,2894.3,0.01728472]
[1769411624373,1.23645037,2895.5,2894.4,0.86373687]
[1769411625415,1.19327994,2895.5,2894.4,0.86373687]
[1769411626586,1.19327994,2895.5,2894.3,0.01728472]
[1769411626785,1.19327994,2895.3,2894.2,0.001]
[1769411626990,1.19327994,2895.2,2894.2,0.86479465]
[1769411627301,1.23645634,2895.1,2894.2,0.20940293]
[1769411627795,1.23645634,2895.1,2894.2,0.001]
[1769411636001,1.23645634,2895.1,2894.2,1.20194994]
[1769411636298,1.19327994,2895.4,2894.3,1.20094994]
[1769411636500,1.23645186,2895.4,2894.3,1.20094994]
[1769411636935,1.23645186,2895.4,2894.2,0.001]
[1769411637095,1.45270706,2895.4,2894.3,1.20094994]
[1769411637430,1.23645186,2895.4,2894.3,1.20094994]
[1769411637601,1.19327994,2895.4,2894.4,1.20094994]
[1769411638331,0.04317341,2895.3,2894.4,1.20094994]
[1769411638697,1.23645335,2895.3,2894.2,0.8647881]
[1769411638898,1.19327994,2895.3,2894.3,2.08199808]
[1769411639537,1.19327994,2895.3,2894.3,2.06471097]
[1769411639738,0.04317491,2895.2,2894.3,2.06471097]
[1769411639911,0.04317491,2895.2,2894.3,2.06469553]
[1769411640114,0.04317491,2895.2,2894.3,1.20094994]
[1769411640433,1.19327994,2895.3,2894.3,1.20094994]
[1769411640728,1.19327994,2895.3,2894.3,2.06471592]
[1769411641432,1.19327994,2895.3,2894.3,1.20094994]
[1769411641798,0.86344425,2895.4,2894.2,0.001]
[1769411641799,1.23645485,2895.2,2894.2,0.001]
[1769411643133,1.23645485,2895.2,2894.2,0.86479156]
[1769411645625,1.23645485,2895.2,2894.2,2.03233991]
[1769411646006,1.19327994,2895.2,2894.2,2.03233991]
[1769411646727,1.19327994,2895.2,2894.4,0.001]
[1769411650105,1.23645485,2895.2,2894.4,0.001]
[1769411651333,1.19327994,2895.2,2894.4,0.001]
[1769411651743,1.19921753,2895.0,2894.4,0.001]
[1769411652535,1.24239691,2894.9,2894.4,0.001]
[1769411653949,1.19921753,2894.9,2894.4,0.001]
[1769411655246,0.04318087,2894.8,2894.4,0.001]
[1769411655446,1.19921753,2894.8,2894.4,0.001]
[1769411657923,3.51652274,2895.4,2894.4,0.001]
[1769411657924,0.04317341,2895.3,2894.4,0.001]
[1769411658123,0.04317341,2895.3,2894.4,1.1529525]
[1769411658519,1.26624376,2895.3,2894.4,1.1529525]
[1769411659040,1.26624376,2895.3,2894.4,1.13566837]
[1769411659236,1.26624376,2895.3,2894.4,0.001]
[1769411660445,1.43603904,2895.2,2894.4,0.001]
[1769411661849,1.26624675,2895.1,2894.4,0.001]
[1769411663321,1.22307035,2894.7,2894.0,0.001]
[1769411663522,6.51439846,2894.8,2894.0,0.001]
[1769411663523,1.22307035,2894.5,2894.0,0.001]
[1769411664465,1.22307035,2894.5,2893.8,0.001]
[1769411664869,1.22307035,2894.4,2893.8,0.001]
[1769411665071,1.22307035,2894.2,2893.8,0.001]
[1769411669349,1.22307035,2894.2,2894.0,0.001]
[1769411676074,0.06269811,2894.6,2894.0,0.001]
[1769411676075,1.25282821,2894.6,2894.0,0.001]
[1769411678462,2.02000908,2894.8,2894.0,0.001]
[1769411678662,1.25282821,2894.7,2894.0,0.001]
[1769411678867,0.20200091,2894.6,2894.0,0.001]
[1769411679173,0.04318535,2894.5,2894.0,0.001]
[1769411679872,1.45482912,2894.6,2894.0,0.001]
[1769411680074,0.20200091,2894.6,2894.0,1.15083408]
[1769411680275,1.25282821,2895.1,2894.0,1.15083408]
[1769411680973,0.002,2894.4,2894.0,1.15083408]
[1769411684276,0.002,2894.4,2894.0,0.001]
[1769411693074,0.002,2894.2,2894.0,0.001]
[1769411701563,0.002,2894.4,2894.0,0.001]
[1769411702487,0.002,2894.6,2894.1,1.14983408]
[1769411702868,0.002,2894.6,2894.1,1.16713193]
[1769411704375,0.002,2894.6,2894.2,1.14983408]
[1769411705371,0.002,2894.4,2894.2,1.14983408]
[1769411705585,0.002,2894.6,2894.2,1.14983408]
[1769411706997,0.002,2894.6,2894.2,2.01362874]
[1769411707302,0.002,2894.6,2894.3,0.20136287]
[1769411708904,0.002,2894.6,2894.3,1.39099821]
[1769411713214,0.002,2894.6,2894.3,0.20136287]
[1769411714022,1.20577408,2894.6,2894.0,0.001]
[1769411714317,1.24895793,2894.6,2894.0,0.001]
[1769411715286,1.20377408,2894.3,2893.0,2.05377542]
[1769411715589,1.20377408,2894.3,2893.0,1.18963534]
[1769411715590,1.20377408,2894.0,2893.0,1.18963534]
[1769411716213,1.20377408,2894.0,2893.0,2.05378921]
[1769411716390,1.20377408,2894.0,2893.0,1.18963534]
[1769411716825,1.20377408,2894.0,2892.9,1.60533679]
[1769411717011,1.20377408,2894.0,2892.9,1.9308072]
[1769411717210,1.9694878,2893.9,2893.0,0.86415301]
[1769411717525,1.19060027,2893.8,2892.9,2.79497154]
[1769411719124,1.19060027,2893.8,2892.9,0.8813362]
[1769411719326,1.19060027,2893.8,2892.9,0.86416434]
[1769411719628,1.19060027,2893.8,2892.8,0.01717186]
[1769411719921,1.19060027,2893.6,2892.5,4.504]
[1769411720338,1.19060027,2893.6,2892.4,0.86431835]
[1769411720534,6.45336313,2893.5,2892.2,0.001]
[1769411720691,1.19060027,2893.4,2892.2,0.001]
[1769411721196,1.19060027,2893.3,2892.2,0.001]
[1769411721516,0.8640428,2893.4,2892.2,0.001]
[1769411721517,1.19060027,2893.1,2892.2,0.001]
[1769411723194,0.20546431,2893.2,2892.2,7.67725705]
[1769411723400,0.20546431,2893.2,2892.3,1.24024195]
[1769411724137,1.39606458,2893.2,2892.3,1.24024195]
[1769411726295,1.39606458,2893.2,2892.6,1.22289392]
[1769411726296,0.20546431,2893.2,2892.6,1.22289392]
[1769411726637,1.42942896,2893.7,2892.5,6.45336313]
[1769411726638,1.19060027,2893.6,2892.5,6.45336313]
[1769411726797,1.23379905,2893.6,2892.3,2.08725746]
[1769411727001,1.23379905,2893.6,2892.3,1.22289392]
[1769411727427,0.86400552,2893.5,2892.3,1.22289392]
[1769411727594,1.23380203,2893.4,2892.3,1.22289392]
[1769411727797,1.19060027,2893.2,2892.3,1.22289392]
[1769411728503,1.19060027,2893.2,2892.2,6.45436313]
[1769411728704,1.23380502,2893.2,2892.5,0.001]
[1769411729304,1.19060027,2893.2,2892.5,0.001]
[1769411729502,0.20978076,2893.3,2892.5,0.001]
[1769411729503,1.19060027,2893.5,2892.5,1.22389392]
[1769411729905,1.19060027,2893.5,2892.6,0.01720158]
[1769411730117,1.19060027,2893.3,2892.5,0.001]
[1769411730519,1.4003812,2893.3,2892.5,0.001]
[1769411731441,1.44358446,2893.3,2892.5,0.001]
[1769411732309,1.4003812,2893.3,2892.5,0.001]
[1769411732912,1.4003812,2893.3,2892.5,1.22389392]
[1769411733126,1.19060027,2893.3,2892.5,1.22389392]
[1769411734210,1.19060027,2893.6,2892.6,1.22289392]
[1769411734407,0.80890802,2893.9,2893.0,1.22289392]
[1769411734642,0.0431943,2893.9,2893.0,1.22289392]
[1769411735147,1.20770039,2893.9,2893.0,1.22289392]
[1769411736037,1.20770039,2893.9,2892.9,6.45336313]
[1769411736243,1.16450609,2893.8,2892.6,2.79501817]
[1769411736444,1.16450609,2893.6,2892.6,2.79501817]
[1769411737226,1.16450609,2893.6,2892.6,2.07101817]
[1769411740034,1.16450609,2893.4,2892.5,0.001]
[1769411740238,1.16450609,2893.8,2892.8,0.001]
[1769411740442,0.0431943,2893.9,2893.1,1.20677339]
[1769411740613,1.16650609,2894.4,2893.6,7.66535598]
[1769411740614,0.002,2894.4,2893.6,7.66535598]
[1769411740951,0.002,2894.4,2893.7,1.20677339]
[1769411741249,0.002,2894.4,2893.2,0.724]
[1769411741250,0.002,2894.6,2894.2,6.45858259]
[1769411741847,0.002,2894.6,2894.0,1.20677339]
[1769411743343,0.002,2894.6,2893.7,0.86392418]
[1769411743748,0.002,2894.6,2893.6,6.45858259]
[1769411743950,0.04518385,2894.6,2893.6,1.58796916]
[1769411744170,0.002,2894.6,2893.7,0.86394226]
[1769411744322,0.002,2894.6,2893.7,2.07071565]
[1769411744522,0.002,2894.6,2893.8,1.20677339]
[1769411745038,0.04518385,2894.6,2893.6,1.5879544]
[1769411745340,0.04518385,2894.6,2893.5,1.58798934]
[1769411746319,0.04518385,2894.6,2893.4,0.86401804]
[1769411746524,0.04518385,2894.6,2893.3,0.86404569]
[1769411746832,0.04518385,2894.6,2892.9,0.86416695]
[1769411746833,0.06269811,2894.4,2892.9,0.86416695]
[1769411747031,0.04318833,2894.3,2892.9,0.86416695]
[1769411747235,0.04318833,2894.3,2893.0,0.86414761]
[1769411747759,0.04318833,2894.3,2892.9,0.86416488]
[1769411747927,1.16450609,2894.2,2892.9,0.86418472]
[1769411748127,1.16450609,2894.0,2892.9,0.86418472]
[1769411748753,0.0431943,2893.9,2892.9,0.86418472]
[1769411748954,1.16450609,2893.9,2892.9,0.86418472]
[1769411749359,1.20770188,2893.8,2892.9,0.86418472]
[1769411749758,1.16450609,2893.8,2892.8,0.001]
[1769411750265,1.20770188,2893.8,2892.8,0.001]
[1769411750469,1.16450609,2893.7,2892.8,0.001]
[1769411752276,1.16450609,2893.9,2893.0,0.001]
[1769411752450,1.16450609,2894.2,2893.0,1.22509931]
[1769411754074,1.16450609,2894.2,2893.1,0.86412498]
[1769411754259,1.16450609,2894.2,2893.2,1.22409334]
[1769411754669,1.16450609,2894.1,2893.0,0.88247697]
[1769411754989,1.16450609,2894.1,2893.0,1.09150201]
[1769411755166,1.20769293,2894.4,2893.1,1.20677339]
[1769411755346,1.20769293,2894.4,2893.2,1.22409095]
[1769411756351,1.20769293,2894.4,2893.3,2.07083864]
[1769411756547,0.04318684,2894.4,2893.4,1.20677339]
[1769411756892,0.002,2894.6,2893.4,1.22408617]
[1769411757947,1.20968994,2894.6,2893.4,1.20677339]
[1769411758149,1.20968994,2894.6,2893.5,1.22408319]
[1769411758350,1.20968994,2894.6,2893.5,2.08806298]
[1769411758552,1.20968994,2894.6,2893.5,2.07075318]
[1769411759191,0.002,2894.6,2893.6,1.22408139]
[1769411760248,1.20968994,2894.6,2893.5,0.86398263]
[1769411760447,0.002,2894.6,2893.6,1.22408259]
[1769411761259,0.002,2894.6,2893.7,1.20677339]
[1769411762185,0.002,2894.6,2893.9,1.20677339]
[1769411762388,0.04516894,2895.6,2894.2,1.20677339]
[1769411762559,0.002,2895.6,2894.2,1.20677339]
[1769411763863,0.002,2895.6,2894.1,0.8638264]
[1769411764087,0.00100193,2895.6,2894.6,1.20677339]
[1769411764389,0.00100193,2895.6,2894.8,1.20677339]
[1769411764685,0.00100193,2895.6,2894.9,1.41381546]
[1769411765488,0.002,2895.8,2895.0,1.2110552]
[1769411766574,0.002,2895.8,2895.2,1.2110552]
[1769411767193,0.002,2895.8,2894.9,0.20704207]
[1769411767393,1.14454977,2895.8,2895.0,0.86355352]
[1769411767694,0.002,2895.8,2895.0,0.86355352]
[1769411768304,0.002,2895.8,2895.0,0.86355693]
[1769411768871,0.002,2895.8,2894.8,0.86359522]
[1769411768872,1.18771573,2895.8,2894.8,0.86359522]
[1769411769072,1.17771573,2895.8,2894.6,0.86367431]
[1769411769291,1.17771573,2895.8,2894.6,0.20875684]
[1769411769292,1.19724788,2895.8,2894.6,0.20875684]
[1769411769596,1.24041384,2895.8,2894.3,0.88093101]
[1769411769895,1.17771573,2895.8,2894.6,0.86365899]
[1769411771165,0.04316596,2895.8,2894.6,0.86365899]
[1769411771369,1.18771275,2896.0,2894.7,1.22823281]
[1769411771571,1.14454977,2896.0,2894.8,0.20918918]
[1769411771779,1.14454977,2896.0,2894.9,0.01717642]
[1769411772984,0.002,2896.0,2895.0,1.2110552]
[1769411773183,0.002,2896.0,2895.1,2.09175846]
[1769411773685,0.002,2896.0,2895.2,1.2110552]
[1769411773886,0.002,2896.0,2895.3,0.20917585]
[1769411774212,0.002,2896.0,2895.3,0.22634989]
[1769411774495,0.002,2896.0,2895.3,1.22822924]
[1769411775068,0.002,2896.0,2895.4,2.07449375]
[1769411775574,0.002,2896.0,2895.5,0.01717302]
[1769411775975,0.002,2895.8,2895.5,0.01717302]
[1769411776302,0.002,2895.8,2895.4,0.86343855]
[1769411776895,0.002,2895.8,2895.4,0.88070001]
[1769411777089,0.002,2895.8,2895.4,0.86343855]
[1769411777402,0.002,2896.0,2895.4,0.86343855]
[1769411777403,1.94e-06,2896.0,2895.5,1.22831487]
[1769411778102,1.94e-06,2896.0,2895.5,1.2110552]
[1769411778296,1.94e-06,2896.0,2895.4,0.88069822]
[1769411778597,1.94e-06,2896.0,2895.3,3.45375423]
[1769411778598,1.94e-06,2896.0,2895.3,0.86346507]
[1769411778802,1.94e-06,2896.0,2895.2,0.86347534]
[1769411779098,1.94e-06,2896.0,2895.1,0.001]
[1769411779302,1.94e-06,2896.0,2895.2,1.18740475]
[1769411780000,1.94e-06,2896.0,2895.1,0.01826205]
[1769411780384,1.94e-06,2896.0,2895.1,0.001]
[1769411780385,1.25050089,2896.0,2895.1,0.001]
[1769411780590,1.25049895,2895.8,2895.1,0.001]
[1769411781097,1.94e-06,2896.0,2895.1,0.001]
[1769411781802,1.94e-06,2896.0,2895.1,0.01436796]
[1769411782922,1.94e-06,2896.0,2895.2,1.18740475]
[1769411783217,1.94e-06,2896.0,2895.4,0.86343855]
[1769411783879,1.94e-06,2896.0,2895.5,0.01541349]
[1769411784078,1.94e-06,2896.0,2895.3,0.86345535]
[1769411784378,1.94e-06,2896.0,2895.4,0.20508601]
[1769411785104,1.94e-06,2896.0,2895.5,1.18740475]
[1769411785290,0.002,2896.3,2895.6,2.05078366]
[1769411786212,1.25249895,2896.3,2895.4,0.20508601]
[1769411786424,1.25049895,2896.1,2895.1,0.86451433]
[1769411786579,1.25049895,2896.1,2895.1,0.8645135]
[1769411786774,1.25049895,2896.1,2895.1,0.001]
[1769411786978,1.25049895,2895.9,2895.1,0.001]
[1769411787407,1.25049895,2896.2,2895.1,0.001]
[1769411787708,1.50953887,2896.2,2895.1,0.001]
[1769411788291,1.50953887,2896.2,2895.3,0.001]
[1769411789194,0.04316,2896.2,2895.4,1.18740475]
[1769411789393,0.002,2896.3,2895.5,0.86340873]
[1769411789622,0.002,2896.3,2895.6,0.01519153]
[1769411790120,0.002,2896.3,2895.5,0.87860026]
[1769411790323,0.002,2896.3,2895.5,0.86340873]
[1769411791819,1.25049895,2896.5,2895.5,0.86340873]
[1769411791820,1.26596075,2896.8,2895.7,1.18740475]
[1769411791993,1.26596075,2896.8,2895.8,0.01724237]
[1769411793815,1.26596075,2896.8,2895.8,0.88054543]
[1769411794006,0.0154618,2896.8,2895.9,1.39419977]
[1769411794201,0.0154618,2896.8,2896.0,0.01723879]
[1769411794724,0.0154618,2896.8,2895.9,0.20679502]
[1769411796112,0.0154618,2896.8,2896.0,2.08563008]
[1769411796528,0.0154618,2896.8,2896.0,0.88049725]
[1769411797527,0.0154618,2896.8,2896.0,0.86325966]
[1769411797903,0.0154618,2896.8,2896.0,1.20513283]
[1769411798108,0.0154618,2896.8,2896.1,0.88046568]
[1769411799905,0.002,2897.2,2896.3,1.20513283]
[1769411800130,0.002,2897.2,2896.4,0.01722688]
[1769411800432,0.002,2896.8,2896.5,0.20855099]
[1769411800648,0.002,2896.8,2896.3,0.88038993]
[1769411801628,0.002,2896.8,2896.3,0.01722688]
[1769411801809,0.002,2896.8,2896.1,0.8804438]
[1769411802013,0.002,2896.8,2896.3,0.86316686]
[1769411802210,0.002,2896.8,2896.2,0.88042438]
[1769411804134,0.002,2897.2,2896.3,1.20513283]
[1769411804315,0.002,2897.2,2896.2,0.88042438]
[1769411804316,0.002,2897.2,2896.4,1.22235971]
[1769411805038,0.001,2897.2,2896.6,1.20513283]
[1769411805210,1.93e-06,2897.2,2896.7,0.01713216]
[1769411805400,1.93e-06,2897.2,2896.3,1.22227138]
[1769411805606,0.002,2897.4,2896.6,1.20513283]
[1769411805829,0.002,2897.4,2896.6,1.22227599]
[1769411806231,1.1535157,2897.4,2896.6,0.86307699]
[1769411806534,1.1535157,2897.4,2896.6,0.88023249]
[1769411806834,1.1535157,2897.4,2896.6,0.86307699]
[1769411807031,1.1535157,2897.4,2896.5,0.86308805]
[1769411807239,0.002,2897.4,2896.6,0.88022744]
[1769411807903,0.002,2897.4,2896.5,0.88024326]
[1769411808125,1.1535157,2897.4,2896.5,0.88024326]
[1769411809025,0.002,2897.4,2896.6,1.20513283]
[1769411809301,0.002,2897.4,2896.7,0.01715312]
[1769411810004,0.002,2897.4,2896.7,1.22228595]
[1769411810220,0.002,2897.4,2896.8,0.86302126]
[1769411810422,0.002,2897.4,2896.9,0.01715193]
[1769411810833,0.00300193,2897.8,2896.8,0.86302126]
[1769411811034,0.00300193,2897.8,2897.0,0.01715133]
[1769411811721,1.15451763,2897.8,2897.0,0.01715133]
[1769411811922,1.15451763,2897.8,2896.7,0.8802423]
[1769411812542,0.002,2897.2,2896.7,0.8802423]
[1769411813110,1.15351859,2897.8,2896.7,0.8802423]
[1769411815128,0.00200289,2897.8,2896.8,1.20513283]
[1769411815326,0.00200289,2897.8,2896.9,1.22234481]
[1769411815733,1.15351859,2897.8,2896.9,0.01721198]
[1769411816337,1.15351859,2897.8,2896.9,0.017209]
[1769411816641,1.15351859,2897.8,2897.0,0.86296168]
[1769411816839,0.00200289,2897.8,2897.1,1.20513283]
[1769411817038,0.00200289,2897.8,2897.2,1.22233826]
[1769411818044,0.002,2897.9,2897.3,1.20513283]
[1769411818241,1.1535157,2898.6,2897.4,1.2223335]
[1769411818442,1.1523157,2898.4,2897.4,0.01720067]
[1769411818744,1.19544294,2898.4,2897.3,0.86285245]
[1769411819113,1.1523157,2898.4,2897.4,0.86283871]
[1769411819445,1.1523157,2898.4,2897.5,0.01719292]
[1769411820623,0.0008,2898.4,2897.6,1.20513283]
[1769411820823,0.002,2898.6,2897.6,1.20513283]
[1769411821016,0.002,2898.6,2897.7,1.41364555]
[1769411821326,0.002,2898.6,2897.9,1.20513283]
[1769411821528,1.45530087,2898.9,2897.9,1.20513283]
[1769411821529,0.65503902,2899.5,2898.1,1.20513283]
[1769411822540,0.65503902,2899.5,2898.3,0.86257461]
[1769411822924,1.1515157,2899.9,2898.4,1.20513283]
[1769411823126,0.09184347,2900.0,2898.4,1.20513283]
[1769411823337,0.09184347,2900.0,2898.5,1.20513283]
[1769411823338,1.21739421,2900.0,2898.5,1.20513283]
[1769411823846,1.21739421,2900.0,2898.3,0.86257461]
[1769411823847,1.21739421,2900.0,2898.7,1.20513283]
[1769411824140,0.06587851,2900.0,2898.9,1.20513283]
[1769411824319,0.06587851,2900.0,2899.0,0.20177963]
[1769411824514,0.002,2899.3,2899.0,1.06414367]
[1769411824716,0.002,2899.3,2899.0,0.20177963]
[1769411824717,0.001,2899.3,2899.0,0.20177963]
[1769411824914,0.06488045,2900.0,2899.0,2.329687]
[1769411825114,0.06488045,2900.0,2899.0,0.6034626]
[1769411825331,0.06488045,2900.0,2899.0,1.06414284]
[1769411825539,0.06488045,2900.0,2898.8,3.44967093]
[1769411825741,1.25210612,2900.0,2899.0,0.86236077]
[1769411826764,1.25210612,2900.0,2898.8,0.86242583]
[1769411827253,1.25210612,2900.0,2898.7,0.86244399]
[1769411827450,1.18722567,2899.9,2898.6,0.40168297]
[1769411827623,1.18722567,2899.9,2898.7,0.03449323]
[1769411827624,1.18722567,2899.7,2898.7,0.03449323]
[1769411828145,1.25210612,2900.0,2898.7,2.57107541]
[1769411828354,1.25210612,2900.0,2898.8,0.40168297]
[1769411828844,1.25210612,2900.0,2899.0,0.86236633]
[1769411829047,1.25210612,2900.0,2898.9,0.03449085]
[1769411829270,1.25210612,2900.0,2898.1,0.41098049]
[1769411829271,1.21319063,2899.9,2898.6,0.86246454]
[1769411829454,1.21319063,2899.9,2898.7,0.01365773]
[1769411829761,1.18722567,2899.6,2898.3,0.87621188]
[1769411830057,1.18722567,2899.6,2898.7,0.86244529]
[1769411830243,1.18722567,2899.6,2898.8,0.01365395]
[1769411831042,1.18722567,2899.6,2898.8,0.87607946]
[1769411831352,1.18722567,2899.6,2898.8,0.03448741]
[1769411832050,1.25210612,2900.0,2898.8,1.32892695]
[1769411832929,1.25210612,2900.0,2898.8,0.03448741]
[1769411833154,1.27807108,2900.0,2898.8,0.89690861]
[1769411833319,1.27807108,2900.0,2898.8,0.03448741]
[1769411833525,1.25210612,2900.0,2898.9,0.4320163]
[1769411833847,1.25210612,2900.0,2898.9,0.46650133]
[1769411834232,1.18722567,2899.8,2898.9,0.46650133]
[1769411834622,0.50601127,2899.7,2899.0,0.86236633]
[1769411834829,0.50601127,2899.7,2899.1,0.03448265]
[1769411836064,0.50601127,2899.7,2899.0,0.03448264]
[1769411836859,0.00128911,2899.7,2899.1,0.86233658]
[1769411837163,1.08157212,2900.2,2899.2,0.03448026]
[1769411837361,1.23722426,2900.4,2899.2,0.03448026]
[1769411837528,1.2112593,2900.4,2899.3,0.22180442]
[1769411837730,1.23722426,2900.4,2899.2,0.03448026]
[1769411837931,1.2104593,2900.3,2899.2,0.03448026]
[1769411838126,0.02676496,2900.4,2899.2,1.35570763]
[1769411838330,0.0008,2900.4,2899.2,1.35570763]
[1769411838754,0.0008,2900.4,2899.3,0.8622771]
[1769411838959,0.0008,2900.4,2899.4,0.03447788]
[1769411839134,1.2112593,2900.4,2899.4,0.03447788]
[1769411839960,1.2112593,2900.4,2899.3,0.03447788]
[1769411840342,1.2112593,2900.4,2899.3,1.32122737]
[1769411840343,0.0008,2900.4,2899.3,1.32122737]
[1769411840528,0.0008,2900.4,2899.3,1.34213597]
[1769411840733,0.0008,2900.4,2899.4,0.22044282]
[1769411840734,1.2112593,2900.4,2899.4,0.22044282]